fUST/lending_fUST_20250915
["ID","MTS","AMOUNT","RATE_DAILY","PERIOD"]
[385464853,1757872244222,-112.73059595,0.00021917,2]
[385464867,1757872308153,1549.7015739,0.000199,2]
[385464878,1757872414784,500.0,0.000199,2]
[385464879,1757872425612,500.0,0.000199,2]
[385464880,1757872436418,500.0,0.000199,2]
[385464881,1757872446992,623.93466744,0.00019178,2]
[385464882,1757872447035,500.0,0.000199,2]
[385464883,1757872468892,159.54988044,0.000199,2]
[385464884,1757872494515,1912.37750812,0.000199,2]
[385464888,1757872675605,1848.63159097,0.000199,2]
[385464890,1757872857369,1787.01053816,0.000199,2]
[385464891,1757872896855,157.318955,0.00024,30]
[385464892,1757872902708,152.882793,0.00024,30]
[385464894,1757873037768,118.80424097,0.000199,2]
[385464895,1757873037792,1608.639279,0.000199,2]
[385464897,1757873219011,1669.86206943,0.000199,2]
[385464898,1757873267182,3261.1298476,0.0002012,2]
[385464899,1757873361574,454.40913181,0.00020019,4]
[385464900,1757873400509,1614.20000042,0.000199,2]
[385464919,1757873432273,-455.04555917,0.0002022,4]
[385464920,1757873432283,-193.219979,0.00020588,2]
[385464921,1757873432305,-1283.640193,0.00020881,2]
[385464922,1757873432317,-1325.88256272,0.0002099,2]
[385464923,1757873432333,-1614.20000029,0.00021149,2]
[385464924,1757873432355,-309.0,0.00021402,2]
[385464925,1757873432367,-309.0,0.00021473,2]
[385464926,1757873432376,-178.0,0.00021692,2]
[385464927,1757873432386,-1200.0,0.00021692,2]
[385464928,1757873432395,-1450.79485754,0.00021693,2]
[385464929,1757873432404,-168.38880561,0.00021704,2]
[385464930,1757873432414,-208.02846301,0.00021704,2]
[385464931,1757873432424,-300.0,0.00021715,2]
[385464932,1757873432434,-500.0,0.00021716,2]
[385464933,1757873432445,-500.0,0.00021716,2]
[385464934,1757873432454,-169.6502318,0.00021716,2]
[385464935,1757873432464,-500.0,0.00021716,2]
[385464936,1757873432473,-500.0,0.00021716,2]
[385464937,1757873432483,-500.0,0.00021716,2]
[385464938,1757873432493,-28621.16461235,0.00021717,2]
[385464940,1757873432502,-160.0,0.00021785,2]
[385464942,1757873432511,-217.77739939,0.00021785,2]
[385464945,1757873432521,-160.0,0.00021785,2]
[385464946,1757873432531,-149.03725593,0.00021785,2]
[385464949,1757873438227,-10.96274407,0.00021785,2]
[385464950,1757873438237,-348.23352813,0.00021817,2]
[385464951,1757873438249,-1077.8489278,0.00021817,2]
[385464952,1757873438260,-1978.62964015,0.00021817,2]
[385464954,1757873438280,-250.13349515,0.00021817,2]
[385464956,1757873438292,-253.54346255,0.00021817,2]
[385464958,1757873438304,-269.35915552,0.00021817,2]
[385464965,1757873440355,-85.18085248,0.00021817,2]
[385464966,1757873440365,-1908.9868454,0.00021817,2]
[385464967,1757873440374,-353.49,0.00021838,2]
[385464969,1757873440384,-309.0,0.00021843,2]
[385464971,1757873440393,-1908.9868454,0.00021886,2]
[385464972,1757873440403,-150.0,0.000219,2]
[385464973,1757873440413,-184.39,0.00021907,3]
[385464974,1757873440423,-553.19,0.00021907,3]
[385464975,1757873440434,-500.0,0.00021916,2]
[385464976,1757873440443,-309.29458023,0.00021916,2]
[385464977,1757873440453,-500.0,0.00021916,2]
[385464978,1757873440463,-500.0,0.00021916,2]
[385464979,1757873440472,-500.0,0.00021916,2]
[385464980,1757873440481,-500.0,0.00021916,2]
[385464981,1757873440491,-500.0,0.00021916,2]
[385464982,1757873440500,-500.0,0.00021916,2]
[385464983,1757873440509,-200.0,0.00021916,2]
[385464984,1757873440518,-1935.48087649,0.00021917,2]
[385464987,1757873443525,-552.24324412,0.00021917,2]
[385464988,1757873443535,-500.0,0.00021917,2]
[385464989,1757873443544,-7593.8657704,0.00021917,2]
[385464990,1757873443554,-170.02951076,0.00021917,2]
[385464991,1757873443564,-524.38777164,0.00021917,2]
[385464992,1757873443573,-480.0,0.00021917,2]
[385464993,1757873443583,-465.74749509,0.00021917,2]
[385464994,1757873443592,-151.0,0.00021917,2]
[385464995,1757873443602,-151.693819,0.00021917,2]
[385464996,1757873443611,-480.0,0.00021917,3]
[385464997,1757873443620,-480.0,0.00021917,2]
[385464998,1757873443630,-385.76431389,0.00021917,2]
[385464999,1757873443639,-333.08776097,0.00021917,2]
[385465006,1757873446300,-146.91223903,0.00021917,2]
[385465007,1757873446311,-480.0,0.00021917,2]
[385465008,1757873446320,-425.80108824,0.00021917,2]
[385465009,1757873446330,-480.0,0.00021917,2]
[385465010,1757873446339,-244.42657025,0.00021917,2]
[385465011,1757873446348,-480.0,0.00021917,2]
[385465012,1757873446358,-647.85,0.00021917,2]
[385465013,1757873446367,-480.0,0.00021917,2]
[385465014,1757873446376,-550.53342202,0.00021917,2]
[385465015,1757873446385,-480.0,0.00021917,2]
[385465016,1757873446395,-480.0,0.00021917,2]
[385465017,1757873446404,-151.0,0.00021917,2]
[385465018,1757873446413,-480.0,0.00021917,2]
[385465019,1757873446422,-249.471015,0.00021917,2]
[385465020,1757873446431,-151.0,0.00021917,2]
[385465021,1757873446440,-480.0,0.00021917,2]
[385465022,1757873446450,-151.0,0.00021917,2]
[385465023,1757873446459,-480.0,0.00021917,2]
[385465024,1757873446468,-480.0,0.00021917,2]
[385465025,1757873446477,-480.0,0.00021917,2]
[385465026,1757873446486,-480.0,0.00021917,2]
[385465027,1757873446495,-178.995566,0.00021917,2]
[385465028,1757873446505,-396.94283022,0.00021917,2]
[385465029,1757873446513,-151.0,0.00021917,2]
[385465030,1757873446522,-151.0,0.00021917,2]
[385465031,1757873446532,-151.0,0.00021917,2]
[385465032,1757873446541,-151.0,0.00021917,2]
[385465033,1757873446550,-151.0,0.00021917,2]
[385465034,1757873446559,-151.0,0.00021917,2]
[385465035,1757873446567,-480.0,0.00021917,2]
[385465036,1757873446577,-205.8,0.00021917,2]
[385465037,1757873446586,-151.0,0.00021917,2]
[385465038,1757873446595,-482.91256193,0.00021917,2]
[385465039,1757873446604,-496.66676076,0.00021917,2]
[385465040,1757873446612,-584.15,0.00021917,2]
[385465041,1757873446622,-480.0,0.00021917,2]
[385465042,1757873446631,-480.0,0.00021917,2]
[385465043,1757873446640,-480.0,0.00021917,2]
[385465044,1757873446650,-480.0,0.00021917,2]
[385465045,1757873446659,-480.0,0.00021917,2]
[385465046,1757873446668,-480.0,0.00021917,2]
[385465047,1757873446677,-151.734799,0.00021917,2]
[385465048,1757873446686,-480.0,0.00021917,2]
[385465049,1757873446695,-768.03,0.00021917,2]
[385465050,1757873446704,-195.6430621,0.00021917,2]
[385465054,1757873495735,157.318956,0.00024,30]
[385465061,1757873587488,1391.76967174,0.000199,2]
[385465062,1757873587512,715.15886078,0.000199,2]
[385465071,1757873712839,5000.0,0.00019178,2]
[385465073,1757873771223,2236.81153681,0.000199,2]
[385465075,1757873952152,2048.03960241,0.000199,2]
[385465076,1757873952177,114.21154983,0.000199,2]
[385465083,1757874082103,-1906.52758522,0.00020938,2]
[385465084,1757874111890,-6072.74327973,0.0002099,2]
[385465086,1757874136753,2090.17611389,0.000199,2]
[385465089,1757874319396,2020.50357677,0.000199,2]
[385465108,1757874500189,1953.15345738,0.000199,2]
[385465180,1757874640701,-193.219979,0.00020734,2]
[385465181,1757874640711,-300.0,0.00020989,2]
[385465183,1757874640721,-1200.0,0.00020989,2]
[385465184,1757874640730,-4162.20405133,0.0002099,2]
[385465185,1757874640758,-10790.25787641,0.0002099,2]
[385465186,1757874640769,-1953.15345729,0.00021149,2]
[385465187,1757874640781,-249.87474231,0.00021355,2]
[385465188,1757874640791,-500.0,0.00021499,2]
[385465189,1757874640800,-10681.82896008,0.000215,2]
[385465190,1757874640811,-1000.7129175,0.00021628,2]
[385465191,1757874640822,-289.27322938,0.00021628,2]
[385465192,1757874640831,-168.39283717,0.00021628,2]
[385465193,1757874640840,-500.0,0.00021628,2]
[385465194,1757874640852,-500.0,0.00021628,2]
[385465195,1757874640862,-500.0,0.00021628,2]
[385465196,1757874640872,-500.0,0.00021628,2]
[385465197,1757874640882,-500.0,0.00021628,2]
[385465198,1757874640891,-426.73912269,0.00021628,2]
[385465199,1757874640900,-23942.98134228,0.00021629,2]
[385465200,1757874640912,-526.92345522,0.00021629,2]
[385465222,1757874646844,-19563.7280169,0.00021629,2]
[385465223,1757874646857,-5888.0,0.00021751,2]
[385465224,1757874646867,-2036.18811958,0.00021763,2]
[385465225,1757874646876,-217.77739939,0.00021816,2]
[385465226,1757874646886,-233.1999649,0.00021816,2]
[385465227,1757874647066,-847.27885267,0.00021816,2]
[385465228,1757874647076,-160.0,0.00021816,2]
[385465229,1757874647087,-1376.93105379,0.00021817,2]
[385465230,1757874647097,-44584.80005958,0.00021817,2]
[385465231,1757874647108,-1000.0,0.00021817,2]
[385465232,1757874647118,-500.0,0.00021817,2]
[385465233,1757874647128,-2841.95270786,0.00021817,2]
[385465234,1757874647137,-216.794729,0.00021817,2]
[385465235,1757874647147,-151.0,0.00021817,2]
[385465236,1757874647157,-151.0,0.00021817,2]
[385465237,1757874647167,-232.30764,0.00021817,2]
[385465238,1757874647176,-232.30764,0.00021817,2]
[385465239,1757874647186,-232.30764,0.00021817,2]
[385465240,1757874647195,-232.30764,0.00021817,2]
[385465241,1757874647205,-151.0,0.00021817,2]
[385465242,1757874647214,-259.013869,0.00021817,2]
[385465243,1757874647224,-151.0,0.00021817,2]
[385465244,1757874647233,-259.013869,0.00021817,2]
[385465245,1757874647242,-151.0,0.00021817,2]
[385465246,1757874647252,-259.013869,0.00021817,2]
[385465247,1757874647261,-151.0,0.00021817,2]
[385465248,1757874647270,-259.013869,0.00021817,2]
[385465249,1757874647279,-339.082144,0.00021817,2]
[385465250,1757874647289,-151.0,0.00021817,2]
[385465251,1757874647299,-339.082144,0.00021817,2]
[385465252,1757874647308,-339.082144,0.00021817,2]
[385465253,1757874647317,-339.082144,0.00021817,2]
[385465254,1757874647327,-151.0,0.00021817,2]
[385465255,1757874647337,-151.0,0.00021817,2]
[385465256,1757874647346,-151.0,0.00021817,2]
[385465257,1757874647356,-151.0,0.00021817,2]
[385465258,1757874647365,-151.0,0.00021817,2]
[385465259,1757874647374,-151.0,0.00021817,2]
[385465260,1757874647385,-151.0,0.00021817,2]
[385465261,1757874647394,-152.582412,0.00021817,2]
[385465262,1757874647403,-151.0,0.00021817,2]
[385465263,1757874647413,-151.0,0.00021817,2]
[385465264,1757874647422,-541.408746,0.00021817,2]
[385465265,1757874647431,-541.408746,0.00021817,2]
[385465266,1757874647441,-541.408746,0.00021817,2]
[385465267,1757874647450,-541.408746,0.00021817,2]
[385465268,1757874647459,-151.0,0.00021817,2]
[385465269,1757874647469,-151.0,0.00021817,2]
[385465270,1757874647478,-213.454921,0.00021817,2]
[385465271,1757874647487,-151.0,0.00021817,2]
[385465272,1757874647497,-213.454921,0.00021817,2]
[385465273,1757874647507,-213.454921,0.00021817,2]
[385465274,1757874647516,-151.0,0.00021817,2]
[385465275,1757874647525,-213.454921,0.00021817,2]
[385465276,1757874647535,-2036.18811955,0.00021845,2]
[385465277,1757874647544,-7922.60745114,0.00021863,2]
[385465278,1757874647554,-368.78,0.00021907,3]
[385465279,1757874647563,-155.0,0.00021916,2]
[385465280,1757874647572,-249.103,0.00021916,2]
[385465281,1757874647582,-679.43792501,0.00021917,2]
[385465282,1757874647591,-3152.9771668,0.00021917,2]
[385465283,1757874647602,-501.58141793,0.00021917,2]
[385465284,1757874647612,-480.0,0.00021917,2]
[385465285,1757874647621,-480.0,0.00021917,2]
[385465286,1757874647631,-482.13729039,0.00021917,2]
[385465287,1757874647640,-151.0,0.00021917,2]
[385465288,1757874647650,-151.0,0.00021917,2]
[385465289,1757874647659,-151.0,0.00021917,2]
[385465290,1757874647669,-151.0,0.00021917,2]
[385465291,1757874647678,-205.932548,0.00021917,2]
[385465292,1757874647689,-860.26,0.00021917,2]
[385465293,1757874647698,-480.0,0.00021917,2]
[385465294,1757874647707,-151.0,0.00021917,2]
[385465295,1757874647716,-151.0,0.00021917,2]
[385465296,1757874647726,-151.0,0.00021917,2]
[385465297,1757874647735,-151.0,0.00021917,2]
[385465298,1757874647744,-158.140728,0.00021917,2]
[385465299,1757874647754,-480.0,0.00021917,2]
[385465300,1757874647764,-480.0,0.00021917,2]
[385465301,1757874647774,-480.0,0.00021917,2]
[385465302,1757874647785,-480.0,0.00021917,2]
[385465303,1757874647793,-480.0,0.00021917,2]
[385465304,1757874647803,-480.0,0.00021917,2]
[385465305,1757874647812,-480.0,0.00021917,2]
[385465306,1757874647822,-480.0,0.00021917,2]
[385465307,1757874647833,-480.0,0.00021917,2]
[385465308,1757874647842,-739.8,0.00021917,2]
[385465309,1757874647851,-151.0,0.00021917,2]
[385465310,1757874647860,-151.0,0.00021917,2]
[385465311,1757874647870,-480.0,0.00021917,2]
[385465312,1757874647879,-151.0,0.00021917,2]
[385465313,1757874647888,-500.0,0.00021917,2]
[385465314,1757874647901,-218.10672,0.00021917,2]
[385465315,1757874647910,-151.0,0.00021917,2]
[385465316,1757874647919,-151.0,0.00021917,2]
[385465317,1757874647929,-500.0,0.00021917,2]
[385465318,1757874647938,-191.196916,0.00021917,2]
[385465319,1757874647947,-157.46017379,0.00021917,2]
[385465320,1757874647956,-157.15647249,0.00021917,2]
[385465321,1757874647965,-157.00903028,0.00021917,2]
[385465322,1757874647974,-157.21950885,0.00021917,2]
[385465323,1757874647983,-157.28590479,0.00021917,2]
[385465324,1757874647992,-480.0,0.00021917,2]
[385465325,1757874648006,-151.0,0.00021917,2]
[385465326,1757874648015,-151.0,0.00021917,2]
[385465327,1757874648024,-151.0,0.00021917,2]
[385465328,1757874648034,-220.879764,0.00021917,2]
[385465329,1757874648044,-278.89753989,0.00021917,2]
[385465330,1757874648054,-480.0,0.00021917,2]
[385465331,1757874648064,-151.0,0.00021917,2]
[385465332,1757874648073,-480.0,0.00021917,2]
[385465333,1757874648082,-480.0,0.00021917,2]
[385465334,1757874648092,-480.0,0.00021917,2]
[385465335,1757874648103,-497.91640254,0.00021917,2]
[385465336,1757874648112,-480.0,0.00021917,2]
[385465337,1757874648122,-480.0,0.00021917,2]
[385465338,1757874648131,-482.02953333,0.00021917,2]
[385465339,1757874648141,-480.0,0.00021917,2]
[385465340,1757874648151,-480.0,0.00021917,2]
[385465341,1757874648159,-480.0,0.00021917,2]
[385465342,1757874648169,-633.83867399,0.00021917,2]
[385465343,1757874648179,-480.0,0.00021917,2]
[385465344,1757874648188,-500.0,0.00021917,2]
[385465345,1757874648197,-489.81829953,0.00021917,2]
[385465346,1757874648206,-237.78727799,0.00021917,2]
[385465347,1757874648216,-480.0,0.00021917,2]
[385465348,1757874648225,-480.0,0.00021917,2]
[385465349,1757874648234,-480.0,0.00021917,2]
[385465350,1757874648244,-480.0,0.00021917,2]
[385465351,1757874648253,-507.12464074,0.00021917,2]
[385465352,1757874648263,-428.81698344,0.00021917,2]
[385465353,1757874648272,-480.0,0.00021917,2]
[385465354,1757874648282,-480.0,0.00021917,2]
[385465355,1757874648291,-480.0,0.00021917,2]
[385465356,1757874648300,-151.0,0.00021917,2]
[385465357,1757874648310,-151.0,0.00021917,2]
[385465358,1757874648319,-480.0,0.00021917,2]
[385465359,1757874648329,-480.0,0.00021917,2]
[385465360,1757874648339,-151.0,0.00021917,2]
[385465361,1757874648348,-151.0,0.00021917,2]
[385465362,1757874648358,-151.0,0.00021917,2]
[385465363,1757874648367,-151.0,0.00021917,2]
[385465364,1757874648377,-151.0,0.00021917,2]
[385465365,1757874648387,-151.0,0.00021917,2]
[385465366,1757874648396,-480.0,0.00021917,2]
[385465367,1757874648406,-480.0,0.00021917,2]
[385465368,1757874648415,-480.0,0.00021917,2]
[385465369,1757874648424,-550.26,0.00021917,2]
[385465370,1757874648433,-152.198541,0.00021917,2]
[385465371,1757874648442,-480.0,0.00021917,2]
[385465372,1757874648452,-388.48939058,0.00021917,2]
[385465373,1757874648461,-480.0,0.00021917,2]
[385465374,1757874648471,-151.0,0.00021917,2]
[385465375,1757874648480,-151.0,0.00021917,2]
[385465376,1757874648490,-481.63240129,0.00021917,2]
[385465377,1757874648499,-151.0,0.00021917,2]
[385465378,1757874648509,-151.0,0.00021917,2]
[385465379,1757874648519,-151.0,0.00021917,2]
[385465380,1757874648528,-151.0,0.00021917,2]
[385465381,1757874648538,-480.0,0.00021917,2]
[385465382,1757874648547,-151.0,0.00021917,2]
[385465383,1757874648556,-151.0,0.00021917,2]
[385465384,1757874648566,-194.5673,0.00021917,2]
[385465385,1757874648575,-480.0,0.00021917,2]
[385465386,1757874648584,-469.88258194,0.00021917,2]
[385465387,1757874648594,-151.0,0.00021917,2]
[385465388,1757874648603,-156.622053,0.00021917,2]
[385465389,1757874648612,-480.0,0.00021917,2]
[385465390,1757874648622,-480.0,0.00021917,2]
[385465391,1757874648632,-480.0,0.00021917,2]
[385465392,1757874648642,-480.0,0.00021917,2]
[385465393,1757874648651,-480.0,0.00021917,2]
[385465394,1757874648661,-661.46,0.00021917,2]
[385465395,1757874648670,-480.0,0.00021917,2]
[385465396,1757874648680,-774.77,0.00021917,2]
[385465397,1757874648689,-151.0,0.00021917,2]
[385465398,1757874648699,-151.0,0.00021917,2]
[385465399,1757874648709,-284.2095,0.00021917,2]
[385465400,1757874648718,-480.0,0.00021917,2]
[385465401,1757874648728,-151.0,0.00021917,2]
[385465402,1757874648737,-784.28,0.00021917,2]
[385465403,1757874648747,-480.0,0.00021917,2]
[385465404,1757874648756,-627.47,0.00021917,2]
[385465405,1757874648765,-303.62836985,0.00021917,2]
[385465406,1757874648778,-480.0,0.00021917,2]
[385465407,1757874648789,-151.0,0.00021917,2]
[385465408,1757874648798,-540.64,0.00021917,2]
[385465409,1757874648808,-151.0,0.00021917,2]
[385465410,1757874648818,-480.0,0.00021917,2]
[385465411,1757874648828,-480.0,0.00021917,2]
[385465412,1757874648837,-151.0,0.00021917,2]
[385465413,1757874648846,-151.0,0.00021917,2]
[385465414,1757874648857,-225.104764,0.00021917,2]
[385465415,1757874648867,-151.0,0.00021917,2]
[385465416,1757874648876,-151.0,0.00021917,2]
[385465417,1757874648884,-151.0,0.00021917,2]
[385465418,1757874648892,-151.0,0.00021917,2]
[385465419,1757874648901,-480.0,0.00021917,2]
[385465420,1757874648909,-497.63353495,0.00021917,2]
[385465421,1757874648917,-588.9538322,0.00021917,2]
[385465422,1757874648926,-480.0,0.00021917,2]
[385465423,1757874648935,-480.0,0.00021917,2]
[385465424,1757874648944,-480.0,0.00021917,2]
[385465425,1757874648953,-1356.97,0.00021917,2]
[385465426,1757874648963,-487.74190289,0.00021917,2]
[385465427,1757874648972,-480.0,0.00021917,2]
[385465428,1757874648981,-480.0,0.00021917,2]
[385465429,1757874648990,-203.68693169,0.00021917,2]
[385465430,1757874649000,-827.08,0.00021917,2]
[385465431,1757874649010,-1309.62,0.00021917,2]
[385465432,1757874649019,-151.532836,0.00021917,2]
[385465433,1757874649030,-480.0,0.00021917,2]
[385465434,1757874649039,-480.0,0.00021917,2]
[385465435,1757874649049,-480.0,0.00021917,2]
[385465436,1757874649058,-480.0,0.00021917,2]
[385465437,1757874649068,-480.0,0.00021917,2]
[385465438,1757874649077,-151.0,0.00021917,2]
[385465439,1757874649086,-480.0,0.00021917,2]
[385465440,1757874649095,-480.0,0.00021917,2]
[385465441,1757874649105,-151.0,0.00021917,2]
[385465442,1757874649114,-151.0,0.00021917,2]
[385465443,1757874649124,-151.0,0.00021917,2]
[385465444,1757874649133,-151.0,0.00021917,2]
[385465445,1757874649141,-151.0,0.00021917,2]
[385465446,1757874649150,-151.0,0.00021917,2]
[385465447,1757874649159,-151.0,0.00021917,2]
[385465448,1757874649168,-151.0,0.00021917,2]
[385465449,1757874649177,-151.0,0.00021917,2]
[385465450,1757874649186,-151.0,0.00021917,2]
[385465451,1757874649195,-480.0,0.00021917,2]
[385465452,1757874649204,-151.0,0.00021917,2]
[385465453,1757874649213,-216.26652,0.00021917,2]
[385465454,1757874649223,-480.0,0.00021917,2]
[385465455,1757874649232,-480.0,0.00021917,2]
[385465456,1757874649241,-605.55,0.00021917,2]
[385465457,1757874649250,-480.0,0.00021917,2]
[385465458,1757874649259,-488.21204967,0.00021917,2]
[385465459,1757874649269,-480.0,0.00021917,2]
[385465460,1757874649278,-151.0,0.00021917,2]
[385465461,1757874649287,-151.0,0.00021917,2]
[385465462,1757874649297,-480.0,0.00021917,2]
[385465463,1757874649307,-480.0,0.00021917,2]
[385465464,1757874649317,-500.11957811,0.00021917,2]
[385465465,1757874649326,-480.0,0.00021917,2]
[385465466,1757874649336,-480.0,0.00021917,2]
[385465467,1757874649345,-151.0,0.00021917,2]
[385465468,1757874649354,-498.26,0.00021917,2]
[385465469,1757874649363,-151.0,0.00021917,2]
[385465470,1757874649373,-151.0,0.00021917,2]
[385465471,1757874649382,-480.0,0.00021917,2]
[385465472,1757874649391,-480.0,0.00021917,2]
[385465473,1757874649400,-1094.27,0.00021917,2]
[385465474,1757874649409,-480.0,0.00021917,2]
[385465475,1757874649419,-480.0,0.00021917,2]
[385465476,1757874649429,-485.87198525,0.00021917,2]
[385465477,1757874649437,-964.42,0.00021917,2]
[385465478,1757874649447,-500.0,0.00021917,2]
[385465479,1757874649456,-482.45430888,0.00021917,2]
[385465480,1757874649465,-151.0,0.00021917,2]
[385465481,1757874649474,-151.0,0.00021917,2]
[385465482,1757874649483,-151.0,0.00021917,2]
[385465483,1757874649492,-151.0,0.00021917,2]
[385465484,1757874649501,-480.0,0.00021917,2]
[385465485,1757874649510,-480.0,0.00021917,2]
[385465486,1757874649520,-480.0,0.00021917,2]
[385465487,1757874649529,-151.0,0.00021917,2]
[385465488,1757874649539,-548.81,0.00021917,2]
[385465489,1757874649549,-151.0,0.00021917,2]
[385465490,1757874649560,-151.0,0.00021917,2]
[385465491,1757874649570,-151.0,0.00021917,2]
[385465492,1757874649580,-480.0,0.00021917,2]
[385465493,1757874649590,-480.0,0.00021917,2]
[385465494,1757874649599,-480.0,0.00021917,2]
[385465495,1757874649609,-480.0,0.00021917,2]
[385465496,1757874649618,-496.76054226,0.00021917,2]
[385465497,1757874649628,-855.12,0.00021917,2]
[385465498,1757874649638,-480.0,0.00021917,2]
[385465499,1757874649649,-480.0,0.00021917,2]
[385465500,1757874649658,-262.08301416,0.00021917,2]
[385465501,1757874649667,-151.0,0.00021917,2]
[385465502,1757874649676,-151.0,0.00021917,2]
[385465503,1757874649686,-3513.19,0.00021917,2]
[385465504,1757874649695,-151.0,0.00021917,2]
[385465505,1757874649705,-151.0,0.00021917,2]
[385465506,1757874649714,-151.0,0.00021917,2]
[385465507,1757874649723,-265.7536046,0.00021917,2]
[385465508,1757874649732,-151.0,0.00021917,2]
[385465509,1757874649741,-151.0,0.00021917,2]
[385465510,1757874649750,-151.0,0.00021917,2]
[385465511,1757874649759,-151.0,0.00021917,2]
[385465512,1757874649769,-151.0,0.00021917,2]
[385465513,1757874649782,-151.0,0.00021917,2]
[385465514,1757874649792,-151.0,0.00021917,2]
[385465515,1757874649802,-151.0,0.00021917,2]
[385465516,1757874649811,-151.0,0.00021917,2]
[385465517,1757874649822,-251.031388,0.00021917,2]
[385465518,1757874649831,-1512.93,0.00021917,2]
[385465519,1757874649841,-480.0,0.00021917,2]
[385465520,1757874649851,-957.338475,0.00021917,2]
[385465521,1757874649863,-957.338475,0.00021917,2]
[385465522,1757874649873,-957.338475,0.00021917,2]
[385465523,1757874649887,-480.0,0.00021917,2]
[385465524,1757874649904,-151.0,0.00021917,2]
[385465525,1757874649915,-151.0,0.00021917,2]
[385465526,1757874649925,-151.0,0.00021917,2]
[385465527,1757874649935,-957.338475,0.00021917,2]
[385465528,1757874649946,-151.0,0.00021917,2]
[385465529,1757874649956,-957.338475,0.00021917,2]
[385465530,1757874649966,-957.338475,0.00021917,2]
[385465531,1757874649975,-957.338475,0.00021917,2]
[385465532,1757874649985,-957.338475,0.00021917,2]
[385465533,1757874649995,-957.338475,0.00021917,2]
[385465534,1757874650004,-159.266346,0.00021917,2]
[385465535,1757874650013,-957.338475,0.00021917,2]
[385465536,1757874650022,-159.266346,0.00021917,2]
[385465537,1757874650031,-957.338475,0.00021917,2]
[385465538,1757874650047,-159.266346,0.00021917,2]
[385465539,1757874650079,-957.338475,0.00021917,2]
[385465540,1757874650089,-159.266346,0.00021917,2]
[385465541,1757874650108,-957.338475,0.00021917,2]
[385465542,1757874650118,-159.266346,0.00021917,2]
[385465543,1757874650129,-957.338475,0.00021917,2]
[385465544,1757874650138,-159.266346,0.00021917,2]
[385465545,1757874650147,-957.338475,0.00021917,2]
[385465546,1757874650157,-159.266346,0.00021917,2]
[385465547,1757874650166,-957.338475,0.00021917,2]
[385465548,1757874650175,-869.7,0.00021917,2]
[385465549,1757874650184,-159.266346,0.00021917,2]
[385465550,1757874650193,-957.338475,0.00021917,2]
[385465551,1757874650202,-756.43,0.00021917,2]
[385465552,1757874650211,-957.338475,0.00021917,2]
[385465553,1757874650220,-159.266346,0.00021917,2]
[385465554,1757874650228,-957.338475,0.00021917,2]
[385465555,1757874650237,-159.266346,0.00021917,2]
[385465556,1757874650247,-159.266346,0.00021917,2]
[385465557,1757874650255,-957.338467,0.00021917,2]
[385465558,1757874650265,-159.266346,0.00021917,2]
[385465559,1757874650274,-159.266346,0.00021917,2]
[385465560,1757874650283,-159.266346,0.00021917,2]
[385465561,1757874650292,-159.266346,0.00021917,2]
[385465562,1757874650301,-159.266346,0.00021917,2]
[385465563,1757874650311,-159.266346,0.00021917,2]